Workbook

Sheet INFO
K1: Q199-02
K2: Verze: 5.0
K3: 2026-03-13
A5: Návrh kruhových tlumičů GD / GDE
A8: Popis výpočtu:
A9: Výpočtový program je určen pro návrh kruhových tlumičů hluku GREIF instalovaných ve vzduchotechnickém potrubí. Návrh je možné provádět pro všechny standardně vyráběné typy kruhových tlumičů GD / GDE podle směrnice ITS122-01. Výpočet je omezen na běžné konstrukční podmínky. V případě složitějších návrhů je nutné tlumič poptat. Uvedené ceny jsou orientační. Skutečná cena včetně obchodních podmínek bude stanovena na základě nabídky.
A14: Nejistota výpočtu:
A15: V září 2018 skončilo přechodné období a vešla v platnost nová, výrazně aktualizovaná norma ČSN EN ISO 9001:2016, která je základním kamenem kvality pro všechny seriózní výrobce. Hlavní změnou je mj. řízení rizik. Z těchto důvodů uvádíme s útlumem hluku skutečnou odchylku. V oblasti metrologie se nejedná o nic nového, ale u prezentování katalogových hodnot útlumů je to novinka, která od projektanta vyžaduje posouzení instalace v širších souvislostech. Důvodem je neznalost podmínek, za jakých bude tlumič pracovat. Proto je nutné, aby míru nejistoty posoudil projektant a zohlednil všechny faktory, které mají na útlum hluku vliv. Jsou to zejména neprůzvučnost a tuhost potrubí, ve kterém bude tlumič instalován, provozní podmínky, způsob měření výsledků atd. Je tedy na projektantovi, jakou míru rizika zvolí a odchylku přičte nebo odečte a v jaké velikosti. Námi prezentovaná rozšířená nejistota představuje interval, ve kterém s 95 % pravděpodobností bude ležet měřená hodnota při kombinaci zmíněných místních podmínek. Je tedy zřejmé, že kvalitní návrh tlumení vyžaduje podrobnou znalost místních podmínek a řízení rizika. Vzhledem k tomu, že jsme již na novou normu recertifikovaní, jsme samozřejmě připraveni tyto rizika minimalizovat a projektantům nabídnout pomocnou ruku při řešení a aplikaci. V podstatě se nejedná o nic nového, neboť po fyzikální stránce se takto chová každý soubor měření a nezáleží na výrobci nebo způsobu uvádění výsledků. My jako první toto aplikujeme a otevřeně nabízíme pomoc při řešení. Oporou nám jsou interní databáze měřených instalací, při kterých validujeme jednotlivé výsledky a porovnáváme účinnosti jednotlivých řešení.
A38: Odkaz na projekční katalogy (www.greif.cz):
A39: ITS122-01 - Kruhové tlumiče hluku GD
A41: Kontakt:
A42: Vaše připomínky na zlepšení, případně objevené chyby můžete posílat na micka@greif.cz. V případě, že budete potřebovat pomoc s návrhem tlumičů, kontaktujte naší technickou podporu.

Sheet TLU-01
N1: Zatlumení zdroje - koncepce výpočtu: | AA1: Data pro návrh kruhových tlumičů
I2: Zadejte označení výpočtu
N3: ZDROJ HLUKU LWZ | Q3: ÚTLUM HLUKU TLUMIČEM DT, LWT | U3: ÚTLUM HLUKU POTRUBÍM DP | X3: VÝSLEDNÝ ÚTLUM HLUKU DC, LWC
P4: → | S4: → | W4: → | AA4: Korekční křivka
A5: Návrh kruhových tlumičů GD / GDE | AA5: f | AB5: Hz | AC5: 31.5 | AD5: 63 | AE5: 125 | AF5: 250 | AG5: 500 | AH5: 1000 | AI5: 2000 | AJ5: 4000 | AK5: 8000
AA6: A | AB6: dB | AC6: -39.4 | AD6: -26.2 | AE6: -16.1 | AF6: -8.6 | AG6: -3.2 | AH6: 0 | AI6: 1.2 | AJ6: 1 | AK6: -1.1
A7: Zadejte název projektu | N7: | ← | P7: CELKOVÝ ÚTLUM HLUKU DC = LWZ - LWC | X7: → |
A8: Zadejte název tlumiče | AA8: Hladiny hluku
AA9: f | AB9: Hz | AC9: 31.5 | AD9: 63 | AE9: 125 | AF9: 250 | AG9: 500 | AH9: 1000 | AI9: 2000 | AJ9: 4000 | AK9: 8000 | AL9: SUM
A10: Tlaková ztráta: | D10: =IF($L$26=1,"Zadejte žlutá pole, nebo vepište poznámky…","Zadejte správné hodnoty...") -> Zadejte žlutá pole, nebo vepište poznámky… | N10: Zatlumení zdroje - výpočet: | R10: Zadejte tvar hlukového spektra (L = lineární, A = korigované) | Y10: L | AA10: LWZ-Lin | AB10: dB | AC10: =IF($Y$10="L",P12,IF($Y$10="A",IF((P12-AC6)<0,0,P12-AC6))) -> 75 | AD10: 90 | AE10: 100 | AF10: 103 | AG10: 99 | AH10: 94 | AI10: 84 | AJ10: 78 | AK10: 74 | AL10: =IF(10*LOG10((10^(AC10/10))+(10^(AD10/10))+(10^(AE10/10))+(10^(AF10/10))+(10^(AG10/10))+(10^(AH10/10))+(10^(AI10/10))+(10^(AJ10/10))+(10^(AK10/10)))<20,"<20",10*LOG10((10^(AC10/10))+(10^(AD10/10))+(10^(AE10/10))+(10^(AF10/10))+(10^(AG10/10))+(10^(AH10/10))+(10^(AI10/10))+(10^(AJ10/10))+(10^(AK10/10)))) -> 106.2095615
A11: dpt | B11: = | K11: =IF(L26=0,"",(0.5*$B$20*$B$23^2*$B$25)*(1+B19)) -> 41.29093127 | N11: f | O11: Hz | P11: 31.5 | Q11: 63 | R11: 125 | S11: 250 | T11: 500 | U11: 1000 | V11: 2000 | W11: 4000 | X11: 8000 | Y11: A | AA11: LWZ-A | AB11: dBA | AC11: =IF($Y$10="A",P12,IF($Y$10="L",IF((P12+AC6)<0,0,P12+AC6))) -> 35.6 | AD11: 63.8 | AE11: 83.9 | AF11: 94.4 | AG11: 95.8 | AH11: 94 | AI11: 85.2 | AJ11: 79 | AK11: 72.9 | AL11: =IF(10*LOG10((10^(AC11/10))+(10^(AD11/10))+(10^(AE11/10))+(10^(AF11/10))+(10^(AG11/10))+(10^(AH11/10))+(10^(AI11/10))+(10^(AJ11/10))+(10^(AK11/10)))<20,"<20",10*LOG10((10^(AC11/10))+(10^(AD11/10))+(10^(AE11/10))+(10^(AF11/10))+(10^(AG11/10))+(10^(AH11/10))+(10^(AI11/10))+(10^(AJ11/10))+(10^(AK11/10)))) -> 99.88823949
A12: Q | B12: 5000 | D12: m3/h | E12: =IF(L12=1,"celkový průtok vzduchu tlumičem","zadejte průtok větší než 0 m3/h") -> celkový průtok vzduchu tlumičem | L12: =IF(B12<=0,0,1) -> 1 | N12: =IF($Y$10="L","LWZ-Lin",IF($Y$10="A","LWZ-A","")) -> LWZ-Lin | O12: dB | P12: 75 | Q12: 90 | R12: 100 | S12: 103 | T12: 99 | U12: 94 | V12: 84 | W12: 78 | X12: 74 | Y12: =AL11 -> 99.88823949 | AA12: DT | AB12: dB | AC12: =IF($L$26=0,"",AM22) -> 3 | AD12: =IF($L$26=0,"",AN22) -> 4 | AE12: 11 | AF12: 23 | AG12: 42 | AH12: 50 | AI12: 29 | AJ12: 15 | AK12: 10 | AL12: -
A13: d | B13: 315 | D13: mm | E13: =IF(L13=1,"nominální průměr tlumiče","zadejte správný nominální průměr - rozlišujte GD a GDE") -> nominální průměr tlumiče | L13: =IF(ISERR(DGET(AA25:AU145,"Vstup",AA21:AC22)),0,1) -> 1 | N13: DT | O13: dB | P13: =C34 -> 3 | Q13: 4 | R13: 11 | S13: 23 | T13: 42 | U13: 50 | V13: 29 | W13: 15 | X13: 10 | Y13: - | AA13: LWT-Lin | AB13: dB | AC13: =IF($L$26=0,0,IF(AQ150<0,0,AQ150)) -> 60.01780887 | AD13: =IF($L$26=0,0,IF(AR150<0,0,AR150)) -> 54.02415781 | AE13: 48.17485446 | AF13: 42.51672659 | AG13: 37.45964761 | AH13: 32.83780609 | AI13: 27.75097127 | AJ13: 22.07532817 | AK13: 16.15177874 | AL13: =IF(10*LOG10((10^(AC13/10))+(10^(AD13/10))+(10^(AE13/10))+(10^(AF13/10))+(10^(AG13/10))+(10^(AH13/10))+(10^(AI13/10))+(10^(AJ13/10))+(10^(AK13/10)))<20,"<20",10*LOG10((10^(AC13/10))+(10^(AD13/10))+(10^(AE13/10))+(10^(AF13/10))+(10^(AG13/10))+(10^(AH13/10))+(10^(AI13/10))+(10^(AJ13/10))+(10^(AK13/10)))) -> 61.29860607
A14: LT | B14: 2000 | D14: mm | E14: =IF(L14=1,"délka tlumiče (1000, 1500 nebo 2000), atypy na vyžádání","zadejte správnou délku tlumiče 1000, 1500 nebo 2000 mm") -> délka tlumiče (1000, 1500 nebo 2000), atypy na vyžádání | L14: =IF(OR(B14=1000,B14=1500,B14=2000),1,0) -> 1 | N14: =IF($Y$10="L","LWT-Lin",IF($Y$10="A","LWT-A","")) -> LWT-Lin | O14: dB | P14: =IF($L$26=0,"",IF($Y$10="L",AC13,IF($Y$10="A",AC14,""))) -> 60.01780887 | Q14: 54.02415781 | R14: 48.17485446 | S14: 42.51672659 | T14: 37.45964761 | U14: 32.83780609 | V14: 27.75097127 | W14: 22.07532817 | X14: 16.15177874 | Y14: =IF($L$26=0,"",AL14) -> 40.17326782 | AA14: LWT-A | AB14: dBA | AC14: =IF($L$26=0,0,IF((AC13+AC6)<0,0,AC13+AC6)) -> 20.61780887 | AD14: 27.82415781 | AE14: 32.07485446 | AF14: 33.91672659 | AG14: 34.25964761 | AH14: 32.83780609 | AI14: 28.95097127 | AJ14: 23.07532817 | AK14: 15.05177874 | AL14: =IF(10*LOG10((10^(AC14/10))+(10^(AD14/10))+(10^(AE14/10))+(10^(AF14/10))+(10^(AG14/10))+(10^(AH14/10))+(10^(AI14/10))+(10^(AJ14/10))+(10^(AK14/10)))<20,"<20",10*LOG10((10^(AC14/10))+(10^(AD14/10))+(10^(AE14/10))+(10^(AF14/10))+(10^(AG14/10))+(10^(AH14/10))+(10^(AI14/10))+(10^(AJ14/10))+(10^(AK14/10)))) -> 40.17326782
A15: typ | B15: GD | D15: - | E15: =IF(L15=1,"zadejte typ tlumiče GD nebo GDE","chybný typ tlumiče") -> zadejte typ tlumiče GD nebo GDE | L15: =IF(OR(B15="GD",B15="GDE"),1,0) -> 1 | N15: DP | O15: dB | P15: 0 | Q15: 0 | R15: 0 | S15: 0 | T15: 0 | U15: 0 | V15: 0 | W15: 0 | X15: 0 | Y15: - | AA15: DP | AB15: dB | AC15: =P15 -> 0 | AD15: 0 | AE15: 0 | AF15: 0 | AG15: 0 | AH15: 0 | AI15: 0 | AJ15: 0 | AK15: 0 | AL15: -
A16: konec | B16: 0 | D16: - | E16: =IF(L16=1,"provedení připojení tlumiče na potrubí","zadejte správné zakončení tlumiče: 0, 1 nebo 2") -> provedení připojení tlumiče na potrubí | L16: =IF(B16="",0,IF(OR(B16=0,B16=1,B16=2),1,0)) -> 1 | N16: =IF($Y$10="L","LWC-Lin",IF($Y$10="A","LWC-A","")) -> LWC-Lin | O16: dB | P16: =IF($L$26=0,"",IF($Y$10="L",AC16,IF($Y$10="A",AC17,""))) -> 72.26678277 | Q16: 86.00275462 | R16: 89.00035913 | S16: 80.00077521 | T16: 57.04801161 | U16: 44.32022504 | V16: 55.00817472 | W16: 63.00035099 | X16: 64.00007128 | Y16: =IF($L$26=0,"",AL17) -> 75.95640711 | AA16: LWC-Lin | AB16: dB | AC16: =IF($L$26=0,0,IF(10*LOG10(10^((AC10-AC12-AC15)/10)+10^(AC13/10))<0,0,10*LOG10(10^((AC10-AC12-AC15)/10)+10^(AC13/10)))) -> 72.26678277 | AD16: 86.00275462 | AE16: 89.00035913 | AF16: 80.00077521 | AG16: 57.04801161 | AH16: 44.32022504 | AI16: 55.00817472 | AJ16: 63.00035099 | AK16: 64.00007128 | AL16: =IF(10*LOG10((10^(AC16/10))+(10^(AD16/10))+(10^(AE16/10))+(10^(AF16/10))+(10^(AG16/10))+(10^(AH16/10))+(10^(AI16/10))+(10^(AJ16/10))+(10^(AK16/10)))<20,"<20",10*LOG10((10^(AC16/10))+(10^(AD16/10))+(10^(AE16/10))+(10^(AF16/10))+(10^(AG16/10))+(10^(AH16/10))+(10^(AI16/10))+(10^(AJ16/10))+(10^(AK16/10)))) -> 91.1891999
A17: t | B17: 20 | D17: °C | E17: =IF(L17=1,"teplota vzduchu (-50 až 200°C)","zadejte teplotu v rozsahu -50 až 200°C") -> teplota vzduchu (-50 až 200°C) | L17: =IF(B17="",0,IF(OR(B17<-50,B17>200),0,1)) -> 1 | N17: DC | O17: dB | P17: =IF($L$26=0,"",AC18) -> 2.73321723 | Q17: 3.997245376 | R17: 10.99964087 | S17: 22.99922479 | T17: 41.95198839 | U17: 49.67977496 | V17: 28.99182528 | W17: 14.99964901 | X17: 9.999928721 | Y17: =IF(OR($L$26=0,$Y$16="<20",$Y$12="<20"),"",$Y$12-$Y$16) -> 23.93183238 | AA17: LWC-A | AB17: dBA | AC17: =IF($L$26=0,0,IF((AC16+AC6)<0,0,AC16+AC6)) -> 32.86678277 | AD17: 59.80275462 | AE17: 72.90035913 | AF17: 71.40077521 | AG17: 53.84801161 | AH17: 44.32022504 | AI17: 56.20817472 | AJ17: 64.00035099 | AK17: 62.90007128 | AL17: =IF(10*LOG10((10^(AC17/10))+(10^(AD17/10))+(10^(AE17/10))+(10^(AF17/10))+(10^(AG17/10))+(10^(AH17/10))+(10^(AI17/10))+(10^(AJ17/10))+(10^(AK17/10)))<20,"<20",10*LOG10((10^(AC17/10))+(10^(AD17/10))+(10^(AE17/10))+(10^(AF17/10))+(10^(AG17/10))+(10^(AH17/10))+(10^(AI17/10))+(10^(AJ17/10))+(10^(AK17/10)))) -> 75.95640711
A18: p | B18: 101325 | D18: Pa | E18: =IF(L18=1,"statický tlak v potrubí (98000 až 110000 Pa)","zadejte statický tlak v rozsahu 98000 až 110000 Pa") -> statický tlak v potrubí (98000 až 110000 Pa) | L18: =IF(OR(B18<98000,B18>110000),0,1) -> 1 | AA18: DC | AB18: dB | AC18: =IF($L$26=0,0,IF($Y$10="L",AC10-AC16,IF($Y$10="A",AC11-AC17,""))) -> 2.73321723 | AD18: 3.997245376 | AE18: 10.99964087 | AF18: 22.99922479 | AG18: 41.95198839 | AH18: 49.67977496 | AI18: 28.99182528 | AJ18: 14.99964901 | AK18: 9.999928721 | AL18: -
A19: res | B19: 0.2 | D19: % | E19: =IF(L19=1,"rezerva na místní podmínky - procentuální navýšení ztráty","rezerva musí být vždy kladné číslo") -> rezerva na místní podmínky - procentuální navýšení ztráty | L19: =IF(B19<0,0,1) -> 1 | N19: Graf [svislá osa - dB / vodorovná osa - Hz]:
A20: ro | B20: =IF($L$26=0,"",$B$18/(287.15*(273.15+$B$17))) -> 1.203698982 | D20: kg/m3 | E20: hustota vzduchu | AA20: Podmínky výběru
A21: S | B21: =IF($L$26=0,"",PI()/4*($B$13/1000)^2) -> 0.07793113276 | D21: m2 | E21: plocha vstupního potrubí | AA21: Typ | AB21: Vstup | AC21: Délka | AD21: Označení tlumiče | AG21: Jádro | AH21: Vnější | AI21: Váha | AJ21: Ksi | AK21: Cena | AL21: Příruba | AM21: 31.5 | AN21: 63 | AO21: 125 | AP21: 250 | AQ21: 500 | AR21: 1000 | AS21: 2000 | AT21: 4000 | AU21: 8000
A22: Si | B22: =IF($L$26=0,"",PI()/4*($B$13^2-$AG$22^2)/1000000) -> 0.07793113276 | D22: m2 | E22: volná průtočná plocha v tlumiči | AA22: =CONCATENATE("=",B15) -> =GD | AB22: =B13 -> 315 | AC22: =B14 -> 2000 | AD22: =IF(ISERR(DGET(AA25:AU145,"Označení tlumiče",AA21:AC22)),"",DGET(AA25:AU145,"Označení tlumiče",AA21:AC22)) -> GD 315-2000 | AG22: =IF(ISERR(DGET(AA25:AU145,"Jádro",AA21:AC22)),"",DGET(AA25:AU145,"Jádro",AA21:AC22)) -> 0 | AH22: =IF(ISERR(DGET(AA25:AU145,"Vnější",AA21:AC22)),"",DGET(AA25:AU145,"Vnější",AA21:AC22)) -> 500 | AI22: =IF(ISERR(DGET(AA25:AU145,"Váha",AA21:AC22)),"",DGET(AA25:AU145,"Váha",AA21:AC22)) -> 44.8 | AJ22: =IF(ISERR(DGET(AA25:AU145,"Ksi",AA21:AC22)),"",DGET(AA25:AU145,"Ksi",AA21:AC22)) -> 0.18 | AK22: =IF(ISERR(DGET(AA25:AU145,"Cena",AA21:AC22)),"",DGET(AA25:AU145,"Cena",AA21:AC22)) -> 12235 | AL22: =IF(ISERR(DGET(AA25:AU145,"Příruba",AA21:AC22)),"",DGET(AA25:AU145,"Příruba",AA21:AC22)) -> 1110 | AM22: =IF(ISERR(DGET(AA25:AU145,"31,5",AA21:AC22)),"",DGET(AA25:AU145,"31,5",AA21:AC22)) -> 3 | AN22: =IF(ISERR(DGET(AA25:AU145,"63",AA21:AC22)),"",DGET(AA25:AU145,"63",AA21:AC22)) -> 4 | AO22: =IF(ISERR(DGET(AA25:AU145,"125",AA21:AC22)),"",DGET(AA25:AU145,"125",AA21:AC22)) -> 11 | AP22: =IF(ISERR(DGET(AA25:AU145,"250",AA21:AC22)),"",DGET(AA25:AU145,"250",AA21:AC22)) -> 23 | AQ22: =IF(ISERR(DGET(AA25:AU145,"500",AA21:AC22)),"",DGET(AA25:AU145,"500",AA21:AC22)) -> 42 | AR22: =IF(ISERR(DGET(AA25:AU145,"1000",AA21:AC22)),"",DGET(AA25:AU145,"1000",AA21:AC22)) -> 50 | AS22: =IF(ISERR(DGET(AA25:AU145,"2000",AA21:AC22)),"",DGET(AA25:AU145,"2000",AA21:AC22)) -> 29 | AT22: =IF(ISERR(DGET(AA25:AU145,"4000",AA21:AC22)),"",DGET(AA25:AU145,"4000",AA21:AC22)) -> 15 | AU22: =IF(ISERR(DGET(AA25:AU145,"8000",AA21:AC22)),"",DGET(AA25:AU145,"8000",AA21:AC22)) -> 10
A23: w | B23: =IF($L$26=0,"",$B$12/3600/$B$21) -> 17.82200309 | D23: m/s | E23: rychlost proudění ve vstupním potrubí před tlumičem
A24: wi | B24: =IF($L$26=0,"",$B$12/3600/$B$22) -> 17.82200309 | D24: m/s | E24: =IF(L24=1,"rychlost proudění uvnitř v tlumiči","rychlost proudění překračuje 25 m/s, zvolte větší dimenzi") -> rychlost proudění uvnitř v tlumiči | L24: =IF(B24="",1,IF(B24<=25,1,0)) -> 1 | AA24: Data katalog
A25: x | B25: =IF($L$26=0,"",$AJ$22) -> 0.18 | D25: - | E25: celkový součinitel tlakové ztráty tlumiče vztažený na plochu S | AA25: Označení tlumiče | AD25: Typ | AE25: Vstup | AF25: Jádro | AG25: Vnější | AH25: Délka | AI25: Váha | AJ25: Ksi | AK25: Cena | AL25: Příruba | AM25: 31.5 | AN25: 63 | AO25: 125 | AP25: 250 | AQ25: 500 | AR25: 1000 | AS25: 2000 | AT25: 4000 | AU25: 8000
A26: c | B26: =IF($L$26=0,"",(1.4*287.15*(273.15+$B$17))^0.5) -> 343.2917586 | D26: m/s | E26: rychlost zvuku ve vzduchu při teplotě t | L26: =L12*L13*L14*L15*L16*L17*L18*L19 -> 1 | AA26: GD 100-1000 | AD26: GD | AE26: 100 | AF26: 0 | AG26: 300 | AH26: 1000 | AI26: 12.5 | AJ26: 0.57 | AK26: 3565 | AL26: 580 | AM26: 5 | AN26: 6 | AO26: 18 | AP26: 30 | AQ26: 38 | AR26: 50 | AS26: 50 | AT26: 42 | AU26: 24
L27: Výpočet je proveden na základě simulace CFD, odhad nepřesnosti ± 10% | AA27: GD 125-1000 | AD27: GD | AE27: 125 | AF27: 0 | AG27: 315 | AH27: 1000 | AI27: 13.5 | AJ27: 0.36 | AK27: 3750 | AL27: 615 | AM27: 4 | AN27: 5 | AO27: 15 | AP27: 26 | AQ27: 34 | AR27: 47 | AS27: 48 | AT27: 31 | AU27: 22
A28: Vlastní hluk: | AA28: GD 140-1000 | AD28: GD | AE28: 140 | AF28: 0 | AG28: 355 | AH28: 1000 | AI28: 16.1 | AJ28: 0.29 | AK28: 4240 | AL28: 645 | AM28: 4 | AN28: 5 | AO28: 14 | AP28: 25 | AQ28: 33 | AR28: 46 | AS28: 46 | AT28: 29 | AU28: 20
A29: f | B29: Hz | C29: 31.5 | D29: 63 | E29: 125 | F29: 250 | G29: 500 | H29: 1000 | I29: 2000 | J29: 4000 | K29: 8000 | L29: LWT-A | AA29: GD 150-1000 | AD29: GD | AE29: 150 | AF29: 0 | AG29: 355 | AH29: 1000 | AI29: 16.3 | AJ29: 0.26 | AK29: 4500 | AL29: 690 | AM29: 4 | AN29: 5 | AO29: 13 | AP29: 24 | AQ29: 32 | AR29: 45 | AS29: 44 | AT29: 27 | AU29: 18
A30: LWT-Lin | B30: dB | C30: =IF($L$26=0,"",AC13) -> 60.01780887 | D30: =IF($L$26=0,"",AD13) -> 54.02415781 | E30: 48.17485446 | F30: 42.51672659 | G30: 37.45964761 | H30: 32.83780609 | I30: 27.75097127 | J30: 22.07532817 | K30: 16.15177874 | L30: =IF($L$26=0,"",AL14) -> 40.17326782 | AA30: GD 160-1000 | AD30: GD | AE30: 160 | AF30: 0 | AG30: 355 | AH30: 1000 | AI30: 16.5 | AJ30: 0.23 | AK30: 4715 | AL30: 705 | AM30: 4 | AN30: 5 | AO30: 11 | AP30: 23 | AQ30: 31 | AR30: 44 | AS30: 42 | AT30: 26 | AU30: 15
L31: Nejistota výpočtu vlastního hluku ± 3 dB | AA31: GD 180-1000 | AD31: GD | AE31: 180 | AF31: 0 | AG31: 400 | AH31: 1000 | AI31: 18.5 | AJ31: 0.21 | AK31: 5160 | AL31: 740 | AM31: 3 | AN31: 4 | AO31: 9 | AP31: 21 | AQ31: 29 | AR31: 42 | AS31: 38 | AT31: 23 | AU31: 14
A32: Útlum a váha kruhového tlumiče: | AA32: GD 200-1000 | AD32: GD | AE32: 200 | AF32: 0 | AG32: 400 | AH32: 1000 | AI32: 18.8 | AJ32: 0.18 | AK32: 5530 | AL32: 765 | AM32: 3 | AN32: 4 | AO32: 8 | AP32: 18 | AQ32: 27 | AR32: 40 | AS32: 34 | AT32: 20 | AU32: 13
A33: f | B33: Hz | C33: 31.5 | D33: 63 | E33: 125 | F33: 250 | G33: 500 | H33: 1000 | I33: 2000 | J33: 4000 | K33: 8000 | L33: M | AA33: GD 224-1000 | AD33: GD | AE33: 224 | AF33: 0 | AG33: 400 | AH33: 1000 | AI33: 18.9 | AJ33: 0.15 | AK33: 6085 | AL33: 790 | AM33: 3 | AN33: 4 | AO33: 8 | AP33: 17 | AQ33: 26 | AR33: 36 | AS33: 29 | AT33: 17 | AU33: 12
A34: DT | B34: dB | C34: =AC12 -> 3 | D34: =AD12 -> 4 | E34: 11 | F34: 23 | G34: 42 | H34: 50 | I34: 29 | J34: 15 | K34: 10 | L34: kg/ks | AA34: GD 250-1000 | AD34: GD | AE34: 250 | AF34: 0 | AG34: 450 | AH34: 1000 | AI34: 21.5 | AJ34: 0.12 | AK34: 6590 | AL34: 990 | AM34: 2 | AN34: 3 | AO34: 8 | AP34: 16 | AQ34: 25 | AR34: 33 | AS34: 25 | AT34: 15 | AU34: 11
A35: 2sigR | B35: dB | C35: =IF(C34="","",7) -> 7 | D35: =IF(D34="","",6) -> 6 | E35: =IF(E34="","",4) -> 4 | F35: =IF(F34="","",4) -> 4 | G35: 4 | H35: 4 | I35: 4 | J35: 4 | K35: =IF(K34="","",7) -> 7 | L35: =IF(L26=0,"",AI22+2*B16*PI()*(B13+80)*80*1*7850/1000000000) -> 44.8 | AA35: GD280-1000 | AD35: GD | AE35: 280 | AF35: 0 | AG35: 500 | AH35: 1000 | AI35: 26.1 | AJ35: 0.11 | AK35: 7190 | AL35: 1015 | AM35: 2 | AN35: 3 | AO35: 7 | AP35: 15 | AQ35: 25 | AR35: 31 | AS35: 23 | AT35: 15 | AU35: 10
AA36: GD 300-1000 | AD36: GD | AE36: 300 | AF36: 0 | AG36: 500 | AH36: 1000 | AI36: 24.5 | AJ36: 0.1 | AK36: 7545 | AL36: 1065 | AM36: 2 | AN36: 3 | AO36: 7 | AP36: 14 | AQ36: 24 | AR36: 30 | AS36: 22 | AT36: 14 | AU36: 9
A37: Závěrečné shrnutí výsledků: | AA37: GD 315-1000 | AD37: GD | AE37: 315 | AF37: 0 | AG37: 500 | AH37: 1000 | AI37: 24.8 | AJ37: 0.09 | AK37: 7760 | AL37: 1110 | AM37: 2 | AN37: 3 | AO37: 6 | AP37: 12 | AQ37: 23 | AR37: 29 | AS37: 20 | AT37: 14 | AU37: 9
A38: Označení tlumiče | D38: =IF($L$26=0,"",CONCATENATE(AD22,".",B16)) -> GD 315-2000.0 | G38: Hmotnost tlumiče | J38: =IF($L$26=0,"",L35) -> 44.8 | AA38: GD 355-1000 | AD38: GD | AE38: 355 | AF38: 0 | AG38: 560 | AH38: 1000 | AI38: 28.5 | AJ38: 0.08 | AK38: 8980 | AL38: 1425 | AM38: 1 | AN38: 2 | AO38: 6 | AP38: 12 | AQ38: 23 | AR38: 26 | AS38: 18 | AT38: 13 | AU38: 8
A39: Nominální rozměr | D39: =IF(L26=0,"",AB22) -> 315 | G39: Délka aktivní části | J39: =IF($L$26=0,"",AC22) -> 2000 | AA39: GD 400-1000 | AD39: GD | AE39: 400 | AF39: 0 | AG39: 600 | AH39: 1000 | AI39: 30.5 | AJ39: 0.06 | AK39: 9800 | AL39: 1735 | AM39: 1 | AN39: 2 | AO39: 5 | AP39: 11 | AQ39: 23 | AR39: 25 | AS39: 16 | AT39: 12 | AU39: 7
A40: Vnější průměr tlumiče | D40: =IF($L$26=0,"",AH22) -> 500 | G40: Celková délka tlumiče | J40: =IF($L$26=0,"",J39+200) -> 2200 | AA40: GD 450-1000 | AD40: GD | AE40: 450 | AF40: 0 | AG40: 630 | AH40: 1000 | AI40: 32.1 | AJ40: 0.05 | AK40: 12545 | AL40: 2150 | AM40: 1 | AN40: 2 | AO40: 5 | AP40: 11 | AQ40: 21 | AR40: 23 | AS40: 15 | AT40: 10 | AU40: 6
A41: Brutto cena tlumiče (bez DPH, EXW Uhlířské Janovice) | J41: =IF($L$26=0,"",AK22+AL22*(2*B16)) -> 12235 | AA41: GD 500-1000 | AD41: GD | AE41: 500 | AF41: 0 | AG41: 710 | AH41: 1000 | AI41: 37.5 | AJ41: 0.04 | AK41: 14880 | AL41: 2385 | AM41: 1 | AN41: 2 | AO41: 4 | AP41: 10 | AQ41: 20 | AR41: 22 | AS41: 14 | AT41: 8 | AU41: 5
AA42: GD 560-1000 | AD42: GD | AE42: 560 | AF42: 0 | AG42: 800 | AH42: 1000 | AI42: 44.1 | AJ42: 0.04 | AK42: 17885 | AL42: 2500 | AM42: 1 | AN42: 2 | AO42: 4 | AP42: 10 | AQ42: 18 | AR42: 20 | AS42: 14 | AT42: 8 | AU42: 4
AA43: GD 600-1000 | AD43: GD | AE43: 600 | AF43: 0 | AG43: 800 | AH43: 1000 | AI43: 43.2 | AJ43: 0.04 | AK43: 19040 | AL43: 2570 | AM43: 0 | AN43: 1 | AO43: 3 | AP43: 9 | AQ43: 17 | AR43: 17 | AS43: 13 | AT43: 7 | AU43: 3
AA44: GD 630-1000 | AD44: GD | AE44: 630 | AF44: 0 | AG44: 900 | AH44: 1000 | AI44: 52 | AJ44: 0.03 | AK44: 20335 | AL44: 3275 | AM44: 0 | AN44: 1 | AO44: 3 | AP44: 8 | AQ44: 16 | AR44: 14 | AS44: 13 | AT44: 7 | AU44: 3
AA45: GD 710-1000 | AD45: GD | AE45: 710 | AF45: 0 | AG45: 900 | AH45: 1000 | AI45: 48.1 | AJ45: 0.03 | AK45: 23070 | AL45: 3455 | AM45: 0 | AN45: 1 | AO45: 2 | AP45: 6 | AQ45: 14 | AR45: 12 | AS45: 11 | AT45: 6 | AU45: 2
AA46: GD 800-1000 | AD46: GD | AE46: 800 | AF46: 0 | AG46: 1000 | AH46: 1000 | AI46: 65.1 | AJ46: 0.03 | AK46: 25200 | AL46: 3640 | AM46: 0 | AN46: 1 | AO46: 2 | AP46: 5 | AQ46: 12 | AR46: 10 | AS46: 9 | AT46: 6 | AU46: 2
AA47: GD 900-1000 | AD47: GD | AE47: 900 | AF47: 0 | AG47: 1120 | AH47: 1000 | AI47: 75.5 | AJ47: 0.02 | AK47: 29875 | AL47: 10105 | AM47: 0 | AN47: 0 | AO47: 1 | AP47: 3 | AQ47: 8 | AR47: 9 | AS47: 7 | AT47: 2 | AU47: 1
AA48: GD 1000-1000 | AD48: GD | AE48: 1000 | AF48: 0 | AG48: 1250 | AH48: 1000 | AI48: 87.2 | AJ48: 0.02 | AK48: 32730 | AL48: 14250 | AM48: 0 | AN48: 0 | AO48: 0 | AP48: 1 | AQ48: 4 | AR48: 5 | AS48: 4 | AT48: 1 | AU48: 0
AA49: GD 100-1500 | AD49: GD | AE49: 100 | AF49: 0 | AG49: 300 | AH49: 1500 | AI49: 17.5 | AJ49: 0.84 | AK49: 4765 | AL49: 580 | AM49: 5 | AN49: 6 | AO49: 22 | AP49: 32 | AQ49: 46 | AR49: 50 | AS49: 50 | AT49: 50 | AU49: 30
AA50: GD 125-1500 | AD50: GD | AE50: 125 | AF50: 0 | AG50: 315 | AH50: 1500 | AI50: 19 | AJ50: 0.53 | AK50: 5020 | AL50: 615 | AM50: 5 | AN50: 6 | AO50: 18 | AP50: 27 | AQ50: 42 | AR50: 50 | AS50: 50 | AT50: 40 | AU50: 27
AA51: GD 140-1500 | AD51: GD | AE51: 140 | AF51: 0 | AG51: 355 | AH51: 1500 | AI51: 22.1 | AJ51: 0.44 | AK51: 5440 | AL51: 645 | AM51: 5 | AN51: 6 | AO51: 17 | AP51: 26 | AQ51: 41 | AR51: 50 | AS51: 47 | AT51: 36 | AU51: 25
AA52: GD 150-1500 | AD52: GD | AE52: 150 | AF52: 0 | AG52: 355 | AH52: 1500 | AI52: 22.5 | AJ52: 0.39 | AK52: 5715 | AL52: 690 | AM52: 5 | AN52: 6 | AO52: 16 | AP52: 25 | AQ52: 41 | AR52: 50 | AS52: 46 | AT52: 32 | AU52: 22
AA53: GD 160-1500 | AD53: GD | AE53: 160 | AF53: 0 | AG53: 355 | AH53: 1500 | AI53: 22.8 | AJ53: 0.35 | AK53: 6170 | AL53: 705 | AM53: 5 | AN53: 6 | AO53: 15 | AP53: 24 | AQ53: 40 | AR53: 50 | AS53: 45 | AT53: 27 | AU53: 19
AA54: GD 180-1500 | AD54: GD | AE54: 180 | AF54: 0 | AG54: 400 | AH54: 1500 | AI54: 26.1 | AJ54: 0.31 | AK54: 6805 | AL54: 740 | AM54: 4 | AN54: 5 | AO54: 13 | AP54: 22 | AQ54: 38 | AR54: 49 | AS54: 40 | AT54: 24 | AU54: 17
AA55: GD 200-1500 | AD55: GD | AE55: 200 | AF55: 0 | AG55: 400 | AH55: 1500 | AI55: 26.3 | AJ55: 0.27 | AK55: 7185 | AL55: 765 | AM55: 4 | AN55: 5 | AO55: 11 | AP55: 21 | AQ55: 37 | AR55: 48 | AS55: 35 | AT55: 22 | AU55: 16
AA56: GD 224-1500 | AD56: GD | AE56: 224 | AF56: 0 | AG56: 400 | AH56: 1500 | AI56: 26.5 | AJ56: 0.22 | AK56: 7930 | AL56: 790 | AM56: 3 | AN56: 4 | AO56: 11 | AP56: 21 | AQ56: 37 | AR56: 44 | AS56: 31 | AT56: 18 | AU56: 14
AA57: GD 250-1500 | AD57: GD | AE57: 250 | AF57: 0 | AG57: 450 | AH57: 1500 | AI57: 30.5 | AJ57: 0.19 | AK57: 8460 | AL57: 990 | AM57: 3 | AN57: 4 | AO57: 11 | AP57: 21 | AQ57: 37 | AR57: 41 | AS57: 27 | AT57: 15 | AU57: 12
AA58: GD 280-1500 | AD58: GD | AE58: 280 | AF58: 0 | AG58: 500 | AH58: 1500 | AI58: 35.1 | AJ58: 0.16 | AK58: 9225 | AL58: 1015 | AM58: 3 | AN58: 4 | AO58: 11 | AP58: 19 | AQ58: 34 | AR58: 41 | AS58: 25 | AT58: 15 | AU58: 11
AA59: GD 300-1500 | AD59: GD | AE59: 300 | AF59: 0 | AG59: 500 | AH59: 1500 | AI59: 34.5 | AJ59: 0.14 | AK59: 9760 | AL59: 1065 | AM59: 2 | AN59: 3 | AO59: 10 | AP59: 17 | AQ59: 31 | AR59: 41 | AS59: 24 | AT59: 14 | AU59: 10
AA60: GD 315-1500 | AD60: GD | AE60: 315 | AF60: 0 | AG60: 500 | AH60: 1500 | AI60: 34.8 | AJ60: 0.13 | AK60: 10055 | AL60: 1110 | AM60: 2 | AN60: 3 | AO60: 9 | AP60: 16 | AQ60: 31 | AR60: 41 | AS60: 23 | AT60: 14 | AU60: 9
AA61: GD 355-1500 | AD61: GD | AE61: 355 | AF61: 0 | AG61: 560 | AH61: 1500 | AI61: 40.2 | AJ61: 0.11 | AK61: 11655 | AL61: 1425 | AM61: 2 | AN61: 3 | AO61: 8 | AP61: 15 | AQ61: 30 | AR61: 36 | AS61: 19 | AT61: 13 | AU61: 8
AA62: GD 400-1500 | AD62: GD | AE62: 400 | AF62: 0 | AG62: 600 | AH62: 1500 | AI62: 43.1 | AJ62: 0.09 | AK62: 12555 | AL62: 1735 | AM62: 2 | AN62: 3 | AO62: 7 | AP62: 15 | AQ62: 30 | AR62: 31 | AS62: 16 | AT62: 12 | AU62: 7
AA63: GD 450-1500 | AD63: GD | AE63: 450 | AF63: 0 | AG63: 630 | AH63: 1500 | AI63: 45.1 | AJ63: 0.08 | AK63: 15625 | AL63: 2150 | AM63: 1 | AN63: 2 | AO63: 6 | AP63: 15 | AQ63: 30 | AR63: 29 | AS63: 15 | AT63: 10 | AU63: 6
AA64: GD 500-1500 | AD64: GD | AE64: 500 | AF64: 0 | AG64: 710 | AH64: 1500 | AI64: 53.1 | AJ64: 0.06 | AK64: 18195 | AL64: 2385 | AM64: 1 | AN64: 2 | AO64: 6 | AP64: 14 | AQ64: 29 | AR64: 27 | AS64: 14 | AT64: 8 | AU64: 6
AA65: GD 560-1500 | AD65: GD | AE65: 560 | AF65: 0 | AG65: 800 | AH65: 1500 | AI65: 62 | AJ65: 0.06 | AK65: 21590 | AL65: 2500 | AM65: 1 | AN65: 2 | AO65: 5 | AP65: 14 | AQ65: 29 | AR65: 25 | AS65: 14 | AT65: 8 | AU65: 5
AA66: GD 600-1500 | AD66: GD | AE66: 600 | AF66: 0 | AG66: 800 | AH66: 1500 | AI66: 65 | AJ66: 0.06 | AK66: 23515 | AL66: 2570 | AM66: 1 | AN66: 2 | AO66: 5 | AP66: 13 | AQ66: 28 | AR66: 24 | AS66: 13 | AT66: 7 | AU66: 4
AA67: GD 630-1500 | AD67: GD | AE67: 630 | AF67: 0 | AG67: 900 | AH67: 1500 | AI67: 73.5 | AJ67: 0.04 | AK67: 24930 | AL67: 3275 | AM67: 1 | AN67: 2 | AO67: 5 | AP67: 12 | AQ67: 28 | AR67: 23 | AS67: 13 | AT67: 7 | AU67: 4
AA68: GD 710-1500 | AD68: GD | AE68: 710 | AF68: 0 | AG68: 900 | AH68: 1500 | AI68: 68.2 | AJ68: 0.04 | AK68: 27930 | AL68: 3455 | AM68: 1 | AN68: 2 | AO68: 4 | AP68: 11 | AQ68: 27 | AR68: 21 | AS68: 11 | AT68: 6 | AU68: 4
AA69: GD 800-1500 | AD69: GD | AE69: 800 | AF69: 0 | AG69: 1000 | AH69: 1500 | AI69: 91.2 | AJ69: 0.04 | AK69: 30620 | AL69: 3640 | AM69: 1 | AN69: 2 | AO69: 4 | AP69: 11 | AQ69: 26 | AR69: 20 | AS69: 9 | AT69: 6 | AU69: 3
AA70: GD 900-1500 | AD70: GD | AE70: 900 | AF70: 0 | AG70: 1120 | AH70: 1500 | AI70: 105.5 | AJ70: 0.03 | AK70: 39610 | AL70: 10105 | AM70: 0 | AN70: 1 | AO70: 3 | AP70: 8 | AQ70: 20 | AR70: 16 | AS70: 6 | AT70: 4 | AU70: 2
AA71: GD 1000-1500 | AD71: GD | AE71: 1000 | AF71: 0 | AG71: 1250 | AH71: 1500 | AI71: 121.5 | AJ71: 0.03 | AK71: 43135 | AL71: 14250 | AM71: 0 | AN71: 0 | AO71: 1 | AP71: 4 | AQ71: 10 | AR71: 8 | AS71: 3 | AT71: 2 | AU71: 1
AA72: GD 100-2000 | AD72: GD | AE72: 100 | AF72: 0 | AG72: 300 | AH72: 2000 | AI72: 23 | AJ72: 1.13 | AK72: 5915 | AL72: 580 | AM72: 6 | AN72: 7 | AO72: 28 | AP72: 41 | AQ72: 50 | AR72: 50 | AS72: 50 | AT72: 50 | AU72: 39
AA73: GD 125-2000 | AD73: GD | AE73: 125 | AF73: 0 | AG73: 315 | AH73: 2000 | AI73: 24.5 | AJ73: 0.72 | AK73: 6250 | AL73: 615 | AM73: 6 | AN73: 7 | AO73: 23 | AP73: 35 | AQ73: 50 | AR73: 50 | AS73: 50 | AT73: 50 | AU73: 35
AA74: GD 140-2000 | AD74: GD | AE74: 140 | AF74: 0 | AG74: 355 | AH74: 2000 | AI74: 29.1 | AJ74: 0.58 | AK74: 6670 | AL74: 645 | AM74: 6 | AN74: 7 | AO74: 21 | AP74: 33 | AQ74: 50 | AR74: 50 | AS74: 50 | AT74: 45 | AU74: 31
AA75: GD 150-2000 | AD75: GD | AE75: 150 | AF75: 0 | AG75: 355 | AH75: 2000 | AI75: 29.3 | AJ75: 0.52 | AK75: 7190 | AL75: 690 | AM75: 6 | AN75: 7 | AO75: 20 | AP75: 32 | AQ75: 50 | AR75: 50 | AS75: 50 | AT75: 40 | AU75: 28
AA76: GD 160-2000 | AD76: GD | AE76: 160 | AF76: 0 | AG76: 355 | AH76: 2000 | AI76: 29.5 | AJ76: 0.48 | AK76: 7555 | AL76: 705 | AM76: 6 | AN76: 7 | AO76: 19 | AP76: 31 | AQ76: 50 | AR76: 50 | AS76: 50 | AT76: 35 | AU76: 24
AA77: GD 180-2000 | AD77: GD | AE77: 180 | AF77: 0 | AG77: 400 | AH77: 2000 | AI77: 34.1 | AJ77: 0.41 | AK77: 8285 | AL77: 740 | AM77: 5 | AN77: 6 | AO77: 17 | AP77: 29 | AQ77: 48 | AR77: 50 | AS77: 47 | AT77: 31 | AU77: 22
AA78: GD 200-2000 | AD78: GD | AE78: 200 | AF78: 0 | AG78: 400 | AH78: 2000 | AI78: 34.5 | AJ78: 0.35 | AK78: 8760 | AL78: 765 | AM78: 5 | AN78: 6 | AO78: 16 | AP78: 27 | AQ78: 48 | AR78: 50 | AS78: 45 | AT78: 28 | AU78: 20
AA79: GD 224-2000 | AD79: GD | AE79: 224 | AF79: 0 | AG79: 400 | AH79: 2000 | AI79: 35.5 | AJ79: 0.29 | AK79: 9575 | AL79: 790 | AM79: 4 | AN79: 5 | AO79: 15 | AP79: 27 | AQ79: 47 | AR79: 50 | AS79: 37 | AT79: 23 | AU79: 16
AA80: GD 250-2000 | AD80: GD | AE80: 250 | AF80: 0 | AG80: 450 | AH80: 2000 | AI80: 39.1 | AJ80: 0.26 | AK80: 10230 | AL80: 990 | AM80: 4 | AN80: 5 | AO80: 14 | AP80: 27 | AQ80: 46 | AR80: 50 | AS80: 35 | AT80: 19 | AU80: 15
AA81: GD 280-2000 | AD81: GD | AE81: 280 | AF81: 0 | AG81: 500 | AH81: 2000 | AI81: 45.1 | AJ81: 0.21 | AK81: 11050 | AL81: 1015 | AM81: 4 | AN81: 5 | AO81: 13 | AP81: 25 | AQ81: 44 | AR81: 50 | AS81: 33 | AT81: 17 | AU81: 13
AA82: GD 300-2000 | AD82: GD | AE82: 300 | AF82: 0 | AG82: 500 | AH82: 2000 | AI82: 44.5 | AJ82: 0.19 | AK82: 11655 | AL82: 1065 | AM82: 3 | AN82: 4 | AO82: 12 | AP82: 24 | AQ82: 43 | AR82: 50 | AS82: 31 | AT82: 16 | AU82: 11
AA83: GD 315-2000 | AD83: GD | AE83: 315 | AF83: 0 | AG83: 500 | AH83: 2000 | AI83: 44.8 | AJ83: 0.18 | AK83: 12235 | AL83: 1110 | AM83: 3 | AN83: 4 | AO83: 11 | AP83: 23 | AQ83: 42 | AR83: 50 | AS83: 29 | AT83: 15 | AU83: 10
AA84: GD 355-2000 | AD84: GD | AE84: 355 | AF84: 0 | AG84: 560 | AH84: 2000 | AI84: 51.5 | AJ84: 0.15 | AK84: 14025 | AL84: 1425 | AM84: 3 | AN84: 4 | AO84: 10 | AP84: 21 | AQ84: 41 | AR84: 45 | AS84: 24 | AT84: 14 | AU84: 9
AA85: GD 400-2000 | AD85: GD | AE85: 400 | AF85: 0 | AG85: 600 | AH85: 2000 | AI85: 55.5 | AJ85: 0.13 | AK85: 15300 | AL85: 1735 | AM85: 2 | AN85: 3 | AO85: 9 | AP85: 20 | AQ85: 41 | AR85: 40 | AS85: 20 | AT85: 13 | AU85: 9
AA86: GD 450-2000 | AD86: GD | AE86: 450 | AF86: 0 | AG86: 630 | AH86: 2000 | AI86: 58.1 | AJ86: 0.11 | AK86: 18455 | AL86: 2150 | AM86: 2 | AN86: 3 | AO86: 8 | AP86: 19 | AQ86: 40 | AR86: 37 | AS86: 19 | AT86: 11 | AU86: 8
AA87: GD 500-2000 | AD87: GD | AE87: 500 | AF87: 0 | AG87: 710 | AH87: 2000 | AI87: 68.2 | AJ87: 0.08 | AK87: 21510 | AL87: 2385 | AM87: 1 | AN87: 2 | AO87: 7 | AP87: 18 | AQ87: 39 | AR87: 35 | AS87: 19 | AT87: 9 | AU87: 7
AA88: GD 560-2000 | AD88: GD | AE88: 560 | AF88: 0 | AG88: 800 | AH88: 2000 | AI88: 80.3 | AJ88: 0.08 | AK88: 25820 | AL88: 2500 | AM88: 1 | AN88: 2 | AO88: 7 | AP88: 17 | AQ88: 38 | AR88: 33 | AS88: 17 | AT88: 9 | AU88: 6
AA89: GD 600-2000 | AD89: GD | AE89: 600 | AF89: 0 | AG89: 800 | AH89: 2000 | AI89: 87.5 | AJ89: 0.08 | AK89: 28085 | AL89: 2570 | AM89: 1 | AN89: 2 | AO89: 6 | AP89: 16 | AQ89: 37 | AR89: 31 | AS89: 16 | AT89: 8 | AU89: 5
AA90: GD 630-2000 | AD90: GD | AE90: 630 | AF90: 0 | AG90: 900 | AH90: 2000 | AI90: 94.2 | AJ90: 0.05 | AK90: 29550 | AL90: 3275 | AM90: 1 | AN90: 2 | AO90: 6 | AP90: 15 | AQ90: 36 | AR90: 29 | AS90: 14 | AT90: 8 | AU90: 5
AA91: GD 710-2000 | AD91: GD | AE91: 710 | AF91: 0 | AG91: 900 | AH91: 2000 | AI91: 97.5 | AJ91: 0.05 | AK91: 33225 | AL91: 3455 | AM91: 1 | AN91: 2 | AO91: 6 | AP91: 14 | AQ91: 34 | AR91: 27 | AS91: 12 | AT91: 7 | AU91: 4
AA92: GD 800-2000 | AD92: GD | AE92: 800 | AF92: 0 | AG92: 1000 | AH92: 2000 | AI92: 117.2 | AJ92: 0.05 | AK92: 36070 | AL92: 3640 | AM92: 1 | AN92: 2 | AO92: 5 | AP92: 14 | AQ92: 33 | AR92: 26 | AS92: 10 | AT92: 6 | AU92: 3
AA93: GD 900-2000 | AD93: GD | AE93: 900 | AF93: 0 | AG93: 1120 | AH93: 2000 | AI93: 135.1 | AJ93: 0.04 | AK93: 49175 | AL93: 10105 | AM93: 0 | AN93: 1 | AO93: 4 | AP93: 10 | AQ93: 23 | AR93: 18 | AS93: 8 | AT93: 5 | AU93: 3
AA94: GD 1000-2000 | AD94: GD | AE94: 1000 | AF94: 0 | AG94: 1250 | AH94: 2000 | AI94: 156.6 | AJ94: 0.04 | AK94: 53540 | AL94: 14250 | AM94: 0 | AN94: 1 | AO94: 2 | AP94: 5 | AQ94: 12 | AR94: 9 | AS94: 4 | AT94: 3 | AU94: 2
AA95: GDE 200-1000 | AD95: GDE | AE95: 200 | AF95: 120 | AG95: 400 | AH95: 1000 | AI95: 25.1 | AJ95: 1.46 | AK95: 6530 | AL95: 765 | AM95: 6 | AN95: 7 | AO95: 12 | AP95: 22 | AQ95: 40 | AR95: 50 | AS95: 50 | AT95: 50 | AU95: 46
AA96: GDE 224-1000 | AD96: GDE | AE96: 224 | AF96: 120 | AG96: 400 | AH96: 1000 | AI96: 25.5 | AJ96: 0.87 | AK96: 7190 | AL96: 790 | AM96: 5 | AN96: 6 | AO96: 11 | AP96: 19 | AQ96: 35 | AR96: 48 | AS96: 50 | AT96: 50 | AU96: 41
AA97: GDE 250-1000 | AD97: GDE | AE97: 250 | AF97: 120 | AG97: 450 | AH97: 1000 | AI97: 29.2 | AJ97: 0.57 | AK97: 7635 | AL97: 990 | AM97: 4 | AN97: 5 | AO97: 10 | AP97: 17 | AQ97: 30 | AR97: 47 | AS97: 50 | AT97: 50 | AU97: 36
AA98: GDE 280-1000 | AD98: GDE | AE98: 280 | AF98: 190 | AG98: 500 | AH98: 1000 | AI98: 34.5 | AJ98: 2.28 | AK98: 8450 | AL98: 1015 | AM98: 4 | AN98: 5 | AO98: 10 | AP98: 16 | AQ98: 29 | AR98: 46 | AS98: 48 | AT98: 47 | AU98: 33
AA99: GDE 300-1000 | AD99: GDE | AE99: 300 | AF99: 190 | AG99: 500 | AH99: 1000 | AI99: 34.6 | AJ99: 1.53 | AK99: 8945 | AL99: 1065 | AM99: 3 | AN99: 4 | AO99: 9 | AP99: 15 | AQ99: 28 | AR99: 45 | AS99: 46 | AT99: 44 | AU99: 30
AA100: GDE 315-1000 | AD100: GDE | AE100: 315 | AF100: 190 | AG100: 500 | AH100: 1000 | AI100: 34.8 | AJ100: 1.4 | AK100: 9305 | AL100: 1110 | AM100: 3 | AN100: 4 | AO100: 9 | AP100: 15 | AQ100: 27 | AR100: 44 | AS100: 45 | AT100: 39 | AU100: 27
AA101: GDE 355-1000 | AD101: GDE | AE101: 355 | AF101: 240 | AG101: 560 | AH101: 1000 | AI101: 39.5 | AJ101: 2.44 | AK101: 10685 | AL101: 1425 | AM101: 3 | AN101: 4 | AO101: 8 | AP101: 14 | AQ101: 26 | AR101: 43 | AS101: 42 | AT101: 34 | AU101: 24
AA102: GDE 400-1000 | AD102: GDE | AE102: 400 | AF102: 240 | AG102: 600 | AH102: 1000 | AI102: 43.5 | AJ102: 1.12 | AK102: 11655 | AL102: 1735 | AM102: 3 | AN102: 3 | AO102: 7 | AP102: 13 | AQ102: 25 | AR102: 40 | AS102: 38 | AT102: 29 | AU102: 21
AA103: GDE 450-1000 | AD103: GDE | AE103: 450 | AF103: 290 | AG103: 630 | AH103: 1000 | AI103: 47 | AJ103: 1.51 | AK103: 14745 | AL103: 2150 | AM103: 2 | AN103: 3 | AO103: 7 | AP103: 12 | AQ103: 24 | AR103: 39 | AS103: 35 | AT103: 26 | AU103: 18
AA104: GDE 500-1000 | AD104: GDE | AE104: 500 | AF104: 290 | AG104: 710 | AH104: 1000 | AI104: 55.1 | AJ104: 0.96 | AK104: 17170 | AL104: 2385 | AM104: 1 | AN104: 2 | AO104: 6 | AP104: 12 | AQ104: 23 | AR104: 38 | AS104: 33 | AT104: 24 | AU104: 17
AA105: GDE 560-1000 | AD105: GDE | AE105: 560 | AF105: 390 | AG105: 800 | AH105: 1000 | AI105: 66.1 | AJ105: 2.42 | AK105: 21575 | AL105: 2500 | AM105: 1 | AN105: 2 | AO105: 6 | AP105: 11 | AQ105: 22 | AR105: 36 | AS105: 31 | AT105: 21 | AU105: 15
AA106: GDE 600-1000 | AD106: GDE | AE106: 600 | AF106: 390 | AG106: 800 | AH106: 1000 | AI106: 64.5 | AJ106: 1.45 | AK106: 22790 | AL106: 2570 | AM106: 1 | AN106: 2 | AO106: 5 | AP106: 11 | AQ106: 21 | AR106: 35 | AS106: 30 | AT106: 20 | AU106: 14
AA107: GDE 630-1000 | AD107: GDE | AE107: 630 | AF107: 390 | AG107: 900 | AH107: 1000 | AI107: 75 | AJ107: 1.45 | AK107: 23775 | AL107: 3275 | AM107: 1 | AN107: 2 | AO107: 5 | AP107: 11 | AQ107: 21 | AR107: 34 | AS107: 29 | AT107: 19 | AU107: 13
AA108: GDE 710-1000 | AD108: GDE | AE108: 710 | AF108: 390 | AG108: 900 | AH108: 1000 | AI108: 81.5 | AJ108: 0.52 | AK108: 27130 | AL108: 3455 | AM108: 1 | AN108: 2 | AO108: 4 | AP108: 10 | AQ108: 20 | AR108: 30 | AS108: 22 | AT108: 14 | AU108: 10
AA109: GDE 800-1000 | AD109: GDE | AE109: 800 | AF109: 490 | AG109: 1000 | AH109: 1000 | AI109: 94.5 | AJ109: 1.13 | AK109: 29680 | AL109: 3640 | AM109: 1 | AN109: 2 | AO109: 2 | AP109: 8 | AQ109: 15 | AR109: 24 | AS109: 18 | AT109: 10 | AU109: 8
AA110: GDE 900-1000 | AD110: GDE | AE110: 900 | AF110: 590 | AG110: 1120 | AH110: 1000 | AI110: 109.5 | AJ110: 1.21 | AK110: 41120 | AL110: 10105 | AM110: 1 | AN110: 1 | AO110: 2 | AP110: 7 | AQ110: 12 | AR110: 20 | AS110: 15 | AT110: 8 | AU110: 6
AA111: GDE 1000-1000 | AD111: GDE | AE111: 1000 | AF111: 690 | AG111: 1250 | AH111: 1000 | AI111: 125.5 | AJ111: 2.14 | AK111: 47835 | AL111: 14250 | AM111: 1 | AN111: 1 | AO111: 1 | AP111: 6 | AQ111: 10 | AR111: 15 | AS111: 10 | AT111: 6 | AU111: 4
AA112: GDE 200-1500 | AD112: GDE | AE112: 200 | AF112: 120 | AG112: 400 | AH112: 1500 | AI112: 35.5 | AJ112: 2.01 | AK112: 8545 | AL112: 765 | AM112: 8 | AN112: 9 | AO112: 16 | AP112: 26 | AQ112: 45 | AR112: 50 | AS112: 50 | AT112: 50 | AU112: 50
AA113: GDE 224-1500 | AD113: GDE | AE113: 224 | AF113: 120 | AG113: 400 | AH113: 1500 | AI113: 35.8 | AJ113: 1.36 | AK113: 9225 | AL113: 790 | AM113: 7 | AN113: 8 | AO113: 15 | AP113: 24 | AQ113: 42 | AR113: 50 | AS113: 50 | AT113: 50 | AU113: 47
AA114: GDE 250-1500 | AD114: GDE | AE114: 250 | AF114: 120 | AG114: 450 | AH114: 1500 | AI114: 40.5 | AJ114: 0.83 | AK114: 9835 | AL114: 990 | AM114: 6 | AN114: 7 | AO114: 14 | AP114: 22 | AQ114: 41 | AR114: 50 | AS114: 50 | AT114: 50 | AU114: 44
AA115: GDE 280-1500 | AD115: GDE | AE115: 280 | AF115: 190 | AG115: 500 | AH115: 1500 | AI115: 48.5 | AJ115: 2.78 | AK115: 10975 | AL115: 1015 | AM115: 6 | AN115: 7 | AO115: 14 | AP115: 21 | AQ115: 39 | AR115: 50 | AS115: 50 | AT115: 50 | AU115: 40
AA116: GDE 300-1500 | AD116: GDE | AE116: 300 | AF116: 190 | AG116: 500 | AH116: 1500 | AI116: 48.6 | AJ116: 1.75 | AK116: 11470 | AL116: 1065 | AM116: 6 | AN116: 7 | AO116: 13 | AP116: 20 | AQ116: 38 | AR116: 50 | AS116: 50 | AT116: 50 | AU116: 37
AA117: GDE 315-1500 | AD117: GDE | AE117: 315 | AF117: 190 | AG117: 500 | AH117: 1500 | AI117: 48.8 | AJ117: 1.49 | AK117: 12110 | AL117: 1110 | AM117: 6 | AN117: 7 | AO117: 12 | AP117: 20 | AQ117: 37 | AR117: 50 | AS117: 50 | AT117: 50 | AU117: 34
AA118: GDE 355-1500 | AD118: GDE | AE118: 355 | AF118: 240 | AG118: 560 | AH118: 1500 | AI118: 55 | AJ118: 2.74 | AK118: 13820 | AL118: 1425 | AM118: 5 | AN118: 6 | AO118: 11 | AP118: 18 | AQ118: 34 | AR118: 50 | AS118: 50 | AT118: 45 | AU118: 30
AA119: GDE 400-1500 | AD119: GDE | AE119: 400 | AF119: 240 | AG119: 600 | AH119: 1500 | AI119: 61.1 | AJ119: 1.21 | AK119: 15170 | AL119: 1735 | AM119: 5 | AN119: 6 | AO119: 10 | AP119: 17 | AQ119: 33 | AR119: 50 | AS119: 50 | AT119: 40 | AU119: 26
AA120: GDE 450-1500 | AD120: GDE | AE120: 450 | AF120: 290 | AG120: 630 | AH120: 1500 | AI120: 66.3 | AJ120: 1.83 | AK120: 18455 | AL120: 2150 | AM120: 4 | AN120: 5 | AO120: 9 | AP120: 16 | AQ120: 31 | AR120: 50 | AS120: 50 | AT120: 36 | AU120: 23
AA121: GDE 500-1500 | AD121: GDE | AE121: 500 | AF121: 290 | AG121: 710 | AH121: 1500 | AI121: 76.2 | AJ121: 1.22 | AK121: 21415 | AL121: 2385 | AM121: 4 | AN121: 5 | AO121: 9 | AP121: 16 | AQ121: 30 | AR121: 50 | AS121: 50 | AT121: 33 | AU121: 21
AA122: GDE 560-1500 | AD122: GDE | AE122: 560 | AF122: 390 | AG122: 800 | AH122: 1500 | AI122: 93.5 | AJ122: 2.71 | AK122: 25820 | AL122: 2500 | AM122: 3 | AN122: 4 | AO122: 8 | AP122: 15 | AQ122: 30 | AR122: 50 | AS122: 48 | AT122: 29 | AU122: 19
AA123: GDE 600-1500 | AD123: GDE | AE123: 600 | AF123: 390 | AG123: 800 | AH123: 1500 | AI123: 97 | AJ123: 1.56 | AK123: 28020 | AL123: 2570 | AM123: 3 | AN123: 4 | AO123: 8 | AP123: 14 | AQ123: 29 | AR123: 50 | AS123: 46 | AT123: 27 | AU123: 17
AA124: GDE 630-1500 | AD124: GDE | AE124: 630 | AF124: 390 | AG124: 900 | AH124: 1500 | AI124: 106.2 | AJ124: 1.56 | AK124: 29650 | AL124: 3275 | AM124: 3 | AN124: 4 | AO124: 8 | AP124: 14 | AQ124: 29 | AR124: 50 | AS124: 44 | AT124: 26 | AU124: 16
AA125: GDE 710-1500 | AD125: GDE | AE125: 710 | AF125: 390 | AG125: 900 | AH125: 1500 | AI125: 110.5 | AJ125: 0.79 | AK125: 33225 | AL125: 3455 | AM125: 3 | AN125: 4 | AO125: 7 | AP125: 13 | AQ125: 28 | AR125: 50 | AS125: 41 | AT125: 23 | AU125: 14
AA126: GDE 800-1500 | AD126: GDE | AE126: 800 | AF126: 490 | AG126: 1000 | AH126: 1500 | AI126: 133.5 | AJ126: 1.26 | AK126: 36730 | AL126: 3640 | AM126: 2 | AN126: 3 | AO126: 6 | AP126: 13 | AQ126: 26 | AR126: 49 | AS126: 37 | AT126: 20 | AU126: 12
AA127: GDE 900-1500 | AD127: GDE | AE127: 900 | AF127: 590 | AG127: 1120 | AH127: 1500 | AI127: 156.2 | AJ127: 1.84 | AK127: 54715 | AL127: 10105 | AM127: 2 | AN127: 2 | AO127: 4 | AP127: 10 | AQ127: 20 | AR127: 39 | AS127: 29 | AT127: 16 | AU127: 9
AA128: GDE 1000-1500 | AD128: GDE | AE128: 1000 | AF128: 690 | AG128: 1250 | AH128: 1500 | AI128: 181.5 | AJ128: 2.31 | AK128: 63440 | AL128: 14250 | AM128: 1 | AN128: 2 | AO128: 3 | AP128: 6 | AQ128: 10 | AR128: 19 | AS128: 14 | AT128: 8 | AU128: 4
AA129: GDE 200-2000 | AD129: GDE | AE129: 200 | AF129: 120 | AG129: 400 | AH129: 2000 | AI129: 45 | AJ129: 2.5 | AK129: 10580 | AL129: 765 | AM129: 9 | AN129: 10 | AO129: 19 | AP129: 31 | AQ129: 50 | AR129: 50 | AS129: 50 | AT129: 50 | AU129: 50
AA130: GDE 224-2000 | AD130: GDE | AE130: 224 | AF130: 120 | AG130: 400 | AH130: 2000 | AI130: 45.4 | AJ130: 1.78 | AK130: 11420 | AL130: 790 | AM130: 8 | AN130: 9 | AO130: 18 | AP130: 28 | AQ130: 50 | AR130: 50 | AS130: 50 | AT130: 50 | AU130: 50
AA131: GDE 250-2000 | AD131: GDE | AE131: 250 | AF131: 120 | AG131: 450 | AH131: 2000 | AI131: 52.2 | AJ131: 1.05 | AK131: 11990 | AL131: 990 | AM131: 7 | AN131: 8 | AO131: 17 | AP131: 26 | AQ131: 49 | AR131: 50 | AS131: 50 | AT131: 50 | AU131: 50
AA132: GDE 280-2000 | AD132: GDE | AE132: 280 | AF132: 190 | AG132: 500 | AH132: 2000 | AI132: 62.5 | AJ132: 3.25 | AK132: 13500 | AL132: 1015 | AM132: 7 | AN132: 8 | AO132: 17 | AP132: 25 | AQ132: 46 | AR132: 50 | AS132: 50 | AT132: 50 | AU132: 48
AA133: GDE 300-2000 | AD133: GDE | AE133: 300 | AF133: 190 | AG133: 500 | AH133: 2000 | AI133: 62.7 | AJ133: 1.97 | AK133: 14360 | AL133: 1065 | AM133: 7 | AN133: 8 | AO133: 15 | AP133: 24 | AQ133: 45 | AR133: 50 | AS133: 50 | AT133: 50 | AU133: 44
AA134: GDE 315-2000 | AD134: GDE | AE134: 315 | AF134: 190 | AG134: 500 | AH134: 2000 | AI134: 62.9 | AJ134: 1.57 | AK134: 14880 | AL134: 1110 | AM134: 7 | AN134: 8 | AO134: 14 | AP134: 24 | AQ134: 44 | AR134: 50 | AS134: 50 | AT134: 50 | AU134: 40
AA135: GDE 355-2000 | AD135: GDE | AE135: 355 | AF135: 240 | AG135: 560 | AH135: 2000 | AI135: 70.5 | AJ135: 3 | AK135: 17010 | AL135: 1425 | AM135: 6 | AN135: 7 | AO135: 13 | AP135: 21 | AQ135: 40 | AR135: 50 | AS135: 50 | AT135: 50 | AU135: 36
AA136: GDE 400-2000 | AD136: GDE | AE136: 400 | AF136: 240 | AG136: 600 | AH136: 2000 | AI136: 78.5 | AJ136: 1.28 | AK136: 18665 | AL136: 1735 | AM136: 6 | AN136: 7 | AO136: 12 | AP136: 20 | AQ136: 39 | AR136: 50 | AS136: 50 | AT136: 48 | AU136: 31
AA137: GDE 450-2000 | AD137: GDE | AE137: 450 | AF137: 290 | AG137: 630 | AH137: 2000 | AI137: 85.5 | AJ137: 2.11 | AK137: 22665 | AL137: 2150 | AM137: 5 | AN137: 6 | AO137: 11 | AP137: 19 | AQ137: 37 | AR137: 50 | AS137: 50 | AT137: 43 | AU137: 27
AA138: GDE 500-2000 | AD138: GDE | AE138: 500 | AF138: 290 | AG138: 710 | AH138: 2000 | AI138: 98.1 | AJ138: 1.48 | AK138: 25620 | AL138: 2385 | AM138: 5 | AN138: 6 | AO138: 11 | AP138: 19 | AQ138: 36 | AR138: 50 | AS138: 50 | AT138: 39 | AU138: 25
AA139: GDE 560-2000 | AD139: GDE | AE139: 560 | AF139: 390 | AG139: 800 | AH139: 2000 | AI139: 120.5 | AJ139: 2.97 | AK139: 31225 | AL139: 2500 | AM139: 4 | AN139: 5 | AO139: 10 | AP139: 18 | AQ139: 36 | AR139: 50 | AS139: 50 | AT139: 35 | AU139: 22
AA140: GDE 600-2000 | AD140: GDE | AE140: 600 | AF140: 390 | AG140: 800 | AH140: 2000 | AI140: 127.5 | AJ140: 1.67 | AK140: 33800 | AL140: 2570 | AM140: 4 | AN140: 5 | AO140: 10 | AP140: 17 | AQ140: 35 | AR140: 50 | AS140: 50 | AT140: 32 | AU140: 20
AA141: GDE 630-2000 | AD141: GDE | AE141: 630 | AF141: 390 | AG141: 900 | AH141: 2000 | AI141: 137 | AJ141: 1.67 | AK141: 35495 | AL141: 3275 | AM141: 4 | AN141: 5 | AO141: 10 | AP141: 17 | AQ141: 35 | AR141: 50 | AS141: 50 | AT141: 31 | AU141: 19
AA142: GDE 710-2000 | AD142: GDE | AE142: 710 | AF142: 390 | AG142: 900 | AH142: 2000 | AI142: 139.5 | AJ142: 1.02 | AK142: 39810 | AL142: 3455 | AM142: 3 | AN142: 4 | AO142: 8 | AP142: 15 | AQ142: 33 | AR142: 50 | AS142: 49 | AT142: 28 | AU142: 17
AA143: GDE 800-2000 | AD143: GDE | AE143: 800 | AF143: 490 | AG143: 1000 | AH143: 2000 | AI143: 172.5 | AJ143: 1.44 | AK143: 43745 | AL143: 3640 | AM143: 3 | AN143: 4 | AO143: 7 | AP143: 15 | AQ143: 31 | AR143: 50 | AS143: 44 | AT143: 24 | AU143: 14
AA144: GDE 900-2000 | AD144: GDE | AE144: 900 | AF144: 590 | AG144: 1120 | AH144: 2000 | AI144: 202.5 | AJ144: 2.21 | AK144: 68310 | AL144: 10105 | AM144: 3 | AN144: 4 | AO144: 7 | AP144: 14 | AQ144: 29 | AR144: 50 | AS144: 41 | AT144: 20 | AU144: 13
AA145: GDE 1000-2000 | AD145: GDE | AE145: 1000 | AF145: 690 | AG145: 1250 | AH145: 2000 | AI145: 237 | AJ145: 2.63 | AK145: 79050 | AL145: 14250 | AM145: 3 | AN145: 4 | AO145: 7 | AP145: 13 | AQ145: 27 | AR145: 50 | AS145: 40 | AT145: 19 | AU145: 12
AA147: Vlastní hluk - typy GD / GDE
AA148: Q | AB148: d | AC148: dj | AD148: t | AE148: p | AF148: typ | AG148: S | AH148: Si | AI148: w | AJ148: wi | AK148: c | AL148: Ma | AM148: H | AN148: delta | AO148: Wo | AP148: B | AQ148: 31.5 | AR148: 63 | AS148: 125 | AT148: 250 | AU148: 500 | AV148: 1000 | AW148: 2000 | AX148: 4000 | AY148: 8000
AA149: m3/h | AB149: mm | AC149: mm | AD149: °C | AE149: Pa | AF149: - | AG149: m2 | AH149: m2 | AI149: m/s | AJ149: m/s | AK149: m/s | AL149: m/s | AM149: m | AN149: - | AO149: W | AP149: - | AQ149: dB | AR149: dB | AS149: dB | AT149: dB | AU149: dB | AV149: dB | AW149: dB | AX149: dB | AY149: dB
AA150: =B12 -> 5000 | AB150: =B13 -> 315 | AC150: =AG22 -> 0 | AD150: =B17 -> 20 | AE150: =B18 -> 101325 | AF150: =B15 -> GD | AG150: =PI()*AB150^2/4/1000000 -> 0.07793113276 | AH150: =PI()/4*(AB150^2-AC150^2)/1000000 -> 0.07793113276 | AI150: =AA150/3600/AG150 -> 17.82200309 | AJ150: =AA150/3600/AH150 -> 17.82200309 | AK150: =(1.4*287.15*(AD150+273.15))^0.5 -> 343.2917586 | AL150: =AJ150/AK150 -> 0.05191503334 | AM150: =IF(AF150="GD",AB150/1000,IF(AF150="GDE",(AB150-AC150)/2000)) -> 0.315 | AN150: 0.02 | AO150: 1 | AP150: 48 | AQ150: =$AP150+(10*LOG10($AE150*$AK150*$AH150/$AO150)+60*LOG10($AL150)+10*LOG10(1+($AK150/2/AQ$148/$AM150)^2)-10*LOG10(1+(AQ$148*$AN150/$AJ150)^2)) -> 60.01780887 | AR150: =$AP150+(10*LOG10($AE150*$AK150*$AH150/$AO150)+60*LOG10($AL150)+10*LOG10(1+($AK150/2/AR$148/$AM150)^2)-10*LOG10(1+(AR$148*$AN150/$AJ150)^2)) -> 54.02415781 | AS150: 48.17485446 | AT150: 42.51672659 | AU150: 37.45964761 | AV150: 32.83780609 | AW150: 27.75097127 | AX150: 22.07532817 | AY150: 16.15177874
AA152: Aktualizace SW
AA153: 3.0 | AB153: 2023-03-19 | AD153: Změna tisku na 1A naležato, změna cen, roztažení poznámek, změna grafiky v záhlaví, aktualizace čísla verze.
AA154: 5.0 | AB154: 2026-03-13 | AD154: Aktualizace cen na rok 2026. Navýšení +5% oproti starému ceníku.
